Workbook

Sheet バスルーム改装費用
B1: バスルーム改装費用ワークシート
B2: 注:テーブルの差額列には、実際の金額が見積金額を超えたかどうかが示されます。超えた場合 (マイナス) は赤で、超えていない場合 (プラス) の場合は黒で表示されます。
E3: 項目別費用 (¥) | H3: 合計費用 (¥)
B4: 区分 | C4: 項目 | D4: 数量 | E4: 見積り | F4: 実際 | G4: 差額 | H4: 見積り | I4: 実際 | J4: 差額
B5: バス/シャワー | C5: 浴槽、鋳鉄、1.5 m、標準 | D5: 1 | E5: ¥250.00 | F5: =RANDBETWEEN(E5+2,E5+20) -> ¥267.00 | G5: =IFERROR(コスト[[#This Row],[見積り]]-コスト[[#This Row],[実際]], "") -> (¥17.00) | H5: =IFERROR(コスト[[#This Row],[数量]]*コスト[[#This Row],[見積り]], "") -> ¥250.00 | I5: =IFERROR(コスト[[#This Row],[数量]]*コスト[[#This Row],[実際]], "") -> ¥267.00 | J5: =IFERROR(コスト[[#This Row],[見積り ]]-コスト[[#This Row],[実際 ]], "") -> (¥17.00)
B6: バス/シャワー | C6: シャワー ドア、ヒンジ、標準 | D6: 1 | E6: ¥200.00 | F6: ¥214.00 | G6: =IFERROR(コスト[[#This Row],[見積り]]-コスト[[#This Row],[実際]], "") -> (¥14.00) | H6: =IFERROR(コスト[[#This Row],[数量]]*コスト[[#This Row],[見積り]], "") -> ¥200.00 | I6: =IFERROR(コスト[[#This Row],[数量]]*コスト[[#This Row],[実際]], "") -> ¥214.00 | J6: =IFERROR(コスト[[#This Row],[見積り ]]-コスト[[#This Row],[実際 ]], "") -> (¥14.00)
B7: バス/シャワー | C7: シャワーヘッド、標準 | D7: 1 | E7: ¥50.00 | F7: ¥62.00 | G7: =IFERROR(コスト[[#This Row],[見積り]]-コスト[[#This Row],[実際]], "") -> (¥12.00) | H7: =IFERROR(コスト[[#This Row],[数量]]*コスト[[#This Row],[見積り]], "") -> ¥50.00 | I7: =IFERROR(コスト[[#This Row],[数量]]*コスト[[#This Row],[実際]], "") -> ¥62.00 | J7: =IFERROR(コスト[[#This Row],[見積り ]]-コスト[[#This Row],[実際 ]], "") -> (¥12.00)
B8: バス/シャワー | C8: タブ周りの壁、標準 | D8: 1 | E8: ¥200.00 | F8: ¥205.00 | G8: =IFERROR(コスト[[#This Row],[見積り]]-コスト[[#This Row],[実際]], "") -> (¥5.00) | H8: =IFERROR(コスト[[#This Row],[数量]]*コスト[[#This Row],[見積り]], "") -> ¥200.00 | I8: =IFERROR(コスト[[#This Row],[数量]]*コスト[[#This Row],[実際]], "") -> ¥205.00 | J8: =IFERROR(コスト[[#This Row],[見積り ]]-コスト[[#This Row],[実際 ]], "") -> (¥5.00)
B9: キャビネット | C9: 薬棚、60 cm、デラックス | D9: 1 | E9: ¥200.00 | F9: ¥214.00 | G9: =IFERROR(コスト[[#This Row],[見積り]]-コスト[[#This Row],[実際]], "") -> (¥14.00) | H9: =IFERROR(コスト[[#This Row],[数量]]*コスト[[#This Row],[見積り]], "") -> ¥200.00 | I9: =IFERROR(コスト[[#This Row],[数量]]*コスト[[#This Row],[実際]], "") -> ¥214.00 | J9: =IFERROR(コスト[[#This Row],[見積り ]]-コスト[[#This Row],[実際 ]], "") -> (¥14.00)
B10: キャビネット | C10: モジュール式化粧台、70 cm、標準 | D10: 2 | E10: ¥100.00 | F10: ¥111.00 | G10: =IFERROR(コスト[[#This Row],[見積り]]-コスト[[#This Row],[実際]], "") -> (¥11.00) | H10: =IFERROR(コスト[[#This Row],[数量]]*コスト[[#This Row],[見積り]], "") -> ¥200.00 | I10: =IFERROR(コスト[[#This Row],[数量]]*コスト[[#This Row],[実際]], "") -> ¥222.00 | J10: =IFERROR(コスト[[#This Row],[見積り ]]-コスト[[#This Row],[実際 ]], "") -> (¥22.00)
B11: カウンター | C11: セラミック タイル、デラックス (直線メートル単位数量) | D11: 5 | E11: ¥22.50 | F11: ¥25.00 | G11: =IFERROR(コスト[[#This Row],[見積り]]-コスト[[#This Row],[実際]], "") -> (¥2.50) | H11: =IFERROR(コスト[[#This Row],[数量]]*コスト[[#This Row],[見積り]], "") -> ¥112.50 | I11: =IFERROR(コスト[[#This Row],[数量]]*コスト[[#This Row],[実際]], "") -> ¥125.00 | J11: =IFERROR(コスト[[#This Row],[見積り ]]-コスト[[#This Row],[実際 ]], "") -> (¥12.50)
B12: 蛇口 | C12: 蛇口、浴槽、標準 | D12: 1 | E12: ¥90.00 | F12: ¥99.00 | G12: =IFERROR(コスト[[#This Row],[見積り]]-コスト[[#This Row],[実際]], "") -> (¥9.00) | H12: =IFERROR(コスト[[#This Row],[数量]]*コスト[[#This Row],[見積り]], "") -> ¥90.00 | I12: =IFERROR(コスト[[#This Row],[数量]]*コスト[[#This Row],[実際]], "") -> ¥99.00 | J12: =IFERROR(コスト[[#This Row],[見積り ]]-コスト[[#This Row],[実際 ]], "") -> (¥9.00)
B13: 蛇口 | C13: 蛇口、シャワー、1 ハンドル、標準 | D13: 1 | E13: ¥115.00 | F13: ¥122.00 | G13: =IFERROR(コスト[[#This Row],[見積り]]-コスト[[#This Row],[実際]], "") -> (¥7.00) | H13: =IFERROR(コスト[[#This Row],[数量]]*コスト[[#This Row],[見積り]], "") -> ¥115.00 | I13: =IFERROR(コスト[[#This Row],[数量]]*コスト[[#This Row],[実際]], "") -> ¥122.00 | J13: =IFERROR(コスト[[#This Row],[見積り ]]-コスト[[#This Row],[実際 ]], "") -> (¥7.00)
B14: 蛇口 | C14: 洗面台蛇口、標準 | D14: 1 | E14: ¥95.00 | F14: ¥104.00 | G14: =IFERROR(コスト[[#This Row],[見積り]]-コスト[[#This Row],[実際]], "") -> (¥9.00) | H14: =IFERROR(コスト[[#This Row],[数量]]*コスト[[#This Row],[見積り]], "") -> ¥95.00 | I14: =IFERROR(コスト[[#This Row],[数量]]*コスト[[#This Row],[実際]], "") -> ¥104.00 | J14: =IFERROR(コスト[[#This Row],[見積り ]]-コスト[[#This Row],[実際 ]], "") -> (¥9.00)
B15: 床材 | C15: セラミック タイル、標準 (平方メートル単位数量) | D15: 35 | E15: ¥12.00 | F15: ¥18.00 | G15: =IFERROR(コスト[[#This Row],[見積り]]-コスト[[#This Row],[実際]], "") -> (¥6.00) | H15: =IFERROR(コスト[[#This Row],[数量]]*コスト[[#This Row],[見積り]], "") -> ¥420.00 | I15: =IFERROR(コスト[[#This Row],[数量]]*コスト[[#This Row],[実際]], "") -> ¥630.00 | J15: =IFERROR(コスト[[#This Row],[見積り ]]-コスト[[#This Row],[実際 ]], "") -> (¥210.00)
B16: ハードウェア | C16: タオル掛け、標準 | D16: 2 | E16: ¥15.00 | F16: ¥24.00 | G16: =IFERROR(コスト[[#This Row],[見積り]]-コスト[[#This Row],[実際]], "") -> (¥9.00) | H16: =IFERROR(コスト[[#This Row],[数量]]*コスト[[#This Row],[見積り]], "") -> ¥30.00 | I16: =IFERROR(コスト[[#This Row],[数量]]*コスト[[#This Row],[実際]], "") -> ¥48.00 | J16: =IFERROR(コスト[[#This Row],[見積り ]]-コスト[[#This Row],[実際 ]], "") -> (¥18.00)
B17: ハードウェア | C17: トイレット ペーパー ホルダー | D17: 1 | E17: ¥10.00 | F17: ¥17.00 | G17: =IFERROR(コスト[[#This Row],[見積り]]-コスト[[#This Row],[実際]], "") -> (¥7.00) | H17: =IFERROR(コスト[[#This Row],[数量]]*コスト[[#This Row],[見積り]], "") -> ¥10.00 | I17: =IFERROR(コスト[[#This Row],[数量]]*コスト[[#This Row],[実際]], "") -> ¥17.00 | J17: =IFERROR(コスト[[#This Row],[見積り ]]-コスト[[#This Row],[実際 ]], "") -> (¥7.00)
B18: 照明 | C18: 埋め込み式ライト、標準 | D18: 4 | E18: ¥25.00 | F18: ¥28.00 | G18: =IFERROR(コスト[[#This Row],[見積り]]-コスト[[#This Row],[実際]], "") -> (¥3.00) | H18: =IFERROR(コスト[[#This Row],[数量]]*コスト[[#This Row],[見積り]], "") -> ¥100.00 | I18: =IFERROR(コスト[[#This Row],[数量]]*コスト[[#This Row],[実際]], "") -> ¥112.00 | J18: =IFERROR(コスト[[#This Row],[見積り ]]-コスト[[#This Row],[実際 ]], "") -> (¥12.00)
B19: 洗面台 | C19: 便器、標準 | D19: 2 | E19: ¥60.00 | F19: ¥80.00 | G19: =IFERROR(コスト[[#This Row],[見積り]]-コスト[[#This Row],[実際]], "") -> (¥20.00) | H19: =IFERROR(コスト[[#This Row],[数量]]*コスト[[#This Row],[見積り]], "") -> ¥120.00 | I19: =IFERROR(コスト[[#This Row],[数量]]*コスト[[#This Row],[実際]], "") -> ¥160.00 | J19: =IFERROR(コスト[[#This Row],[見積り ]]-コスト[[#This Row],[実際 ]], "") -> (¥40.00)
B20: その他 | D20: 1 | E20: ¥20.00 | F20: ¥22.00 | G20: =IFERROR(コスト[[#This Row],[見積り]]-コスト[[#This Row],[実際]], "") -> (¥2.00) | H20: =IFERROR(コスト[[#This Row],[数量]]*コスト[[#This Row],[見積り]], "") -> ¥20.00 | I20: =IFERROR(コスト[[#This Row],[数量]]*コスト[[#This Row],[実際]], "") -> ¥22.00 | J20: =IFERROR(コスト[[#This Row],[見積り ]]-コスト[[#This Row],[実際 ]], "") -> (¥2.00)
B21: 小計 | E21: =SUBTOTAL(109,コスト[見積り]) -> ¥1,464.50 | F21: =SUBTOTAL(109,コスト[実際]) -> ¥1,612.00 | G21: =SUBTOTAL(109,コスト[差額]) -> (¥147.50) | H21: =SUBTOTAL(109,コスト[[見積り ]]) -> ¥2,212.50 | I21: =SUBTOTAL(109,コスト[[実際 ]]) -> ¥2,623.00 | J21: =SUBTOTAL(109,コスト[[差額 ]]) -> (¥410.50)
B23: 予定外コスト (見積もりの 30% を追加) | E23: =IFERROR(コスト[[#Totals],[見積り]]*0.3, "") -> ¥439.35 | H23: =IFERROR(コスト[[#Totals],[見積り ]]*0.3, "") -> ¥663.75
B24: 総コスト | E24: =IFERROR(SUM(E21:E21), "") -> ¥1,464.50 | H24: =IFERROR(SUM(コスト[[#Totals],[見積り ]],Overage), "") -> ¥2,876.25
